Cogmind - Beta 11.1 @@@ ROGUE MODE // 2022.05.11 @ 17:33:59 Player: Sara Result: Destroyed by Y-54 Guardian with Gatling Laser Performance ------------- Evolutions (3) 1500 Regions Visited (5) 1000 Robots Destroyed (0) 0 Value Destroyed (0) 0 Prototype IDs (1) 20 Alien Tech Used (0) 0 Bonus (834) 834 TOTAL SCORE: 3354 Bonus ------- Pacifist 834 Cogmind --------- Core Integrity 0/700 Matter 34/300 Energy 100/100 System Corruption 2% Temperature Cool (18) Movement Core (50) Location -7/Storage Parts ------- > --- POWER (1) -------- (None) > --- PROPULSION (4) --- (None) > --- UTILITY (6) ------ (None) > --- WEAPON (2) ------- (None) > --- INVENTORY (5) ---- Reaction Control System Reaction Control System Reaction Control System Improved Datajack Improved Datajack Peak State ------------ > --- POWER ------------ (None) > --- PROPULSION ------- (None) > --- UTILITY ---------- Reaction Control System Reaction Control System Reaction Control System > --- WEAPON ----------- (None) > --- INVENTORY -------- Datajack Improved Datajack Improved Datajack Improved Datajack [Rating: 10] Favorites ----------- Power Heavy Ion Engine Engine Heavy Ion Engine Propulsion Cesium-ion Thruster Flight Unit Cesium-ion Thruster Utility Reaction Control System Device Reaction Control System Weapon Datajack Special Melee Weapon Datajack Build | -11 -10 -9 -8 -7 -7 ------- Run | Scr Mat Mat Mat Fac Sto Slots Evolved 6 | . . 2 2 2 . Power . | . . . . . . Propulsion 2 | . . . . 2 . Utility 4 | . . 2 2 . . Weapon . | . . . . . . Parts Attached 13 | . 5 6 2 . . Power 1 | . . 1 . . . Engine 1 | . . 1 . . . Core . | . . . . . . Reactor . | . . . . . . Propulsion 2 | . . . 2 . . Treads . | . . . . . . Leg . | . . . . . . Wheel . | . . . . . . Hover . | . . . . . . Flight 2 | . . . 2 . . Utility 3 | . . 3 . . . Device 3 | . . 3 . . . Storage . | . . . . . . Processor . | . . . . . . Hackware . | . . . . . . Protection . | . . . . . . Artifact . | . . . . . . Weapon 7 | . 5 2 . . . Energy Gun . | . . . . . . Energy Cannon . | . . . . . . Ballistic Gun . | . . . . . . Ballistic Cannon . | . . . . . . Launcher . | . . . . . . Special Weapon . | . . . . . . Impact Weapon . | . . . . . . Slashing Weapon . | . . . . . . Piercing Weapon . | . . . . . . Special Melee Weapon 7 | . 5 2 . . . Unidentified Prototypes 1 | . . 1 . . . Parts Lost 8 | . 4 1 2 . 1 Power . | . . . . . . Propulsion 2 | . . . 2 . . Utility 1 | . . . . . 1 Weapon 5 | . 4 1 . . . Highest Loss Streak 3 | . 3 1 2 . 1 To Critical Strikes . | . . . . . . Average Slot Usage (%) 9 | . 10 3 22 7 3 Flight 2 | . . . 13 . . Device 2 | . . 1 9 7 3 Special Melee Weapon 3 | . 10 1 . . . Naked Turns 322 | . 90 192 . . 40 Heaviest Build 9 | . 2 9 1 1 1 Greatest Support 10 | 3 3 3 10 3 3 Greatest Overweight (x) 2 | . . 2 . . . Average Overweight (x) . | . . . . . . Largest Inventory Capacity 5 | 5 5 5 5 5 5 Average Capacity 5 | 5 5 5 5 5 5 Most Carried 5 | . 1 5 5 5 5 Average Carried 2 | . . 2 5 5 5 Final Capacity 5 | 5 5 5 5 5 5 Final Carried 5 | . 1 5 5 5 5 Class Distribution -------------------- 83% | Mutant 16% | Sprinter Dominant Class ---------------- Mutant | -10/Materials Mutant | -9/Materials Sprinter | -8/Materials Mutant | -7/Factory Mutant | -7/Storage Resources | -11 -10 -9 -8 -7 -7 ----------- Run | Scr Mat Mat Mat Fac Sto Matter Collected . | . . . . . . Remotely . | . . . . . . Salvage Created . | . . . . . . Parts . | . . . . . . Haulers Intercepted . | . . . . . . Recyclers Shooed . | . . . . . . Parts Field Recycled . | . . . . . . Retrieved Matter . | . . . . . . Parts Self-Destructed . | . . . . . . Prevented . | . . . . . . Kills | -11 -10 -9 -8 -7 -7 ------- Run | Scr Mat Mat Mat Fac Sto Combat Hostiles Destroyed . | . . . . . . Classes Destroyed . | . . . . . . Best Kill Streak . | . . . . . . Combat Bots Only . | . . . . . . Max Kills in Single Turn . | . . . . . . Gunslinging . | . . . . . . Exploded . | . . . . . . Melee . | . . . . . . Uniques/NPCs Destroyed . | . . . . . . Combat | -11 -10 -9 -8 -7 -7 -------- Run | Scr Mat Mat Mat Fac Sto Damage Taken 1483 | . 180 406 164 . 733 Core 1260 | . 133 337 88 . 702 Absorbed by Shields . | . . . . . . Core Remaining (%) 61 | 100 46 15 84 . . Volleys Fired . | . . . . . . Largest . | . . . . . . Hottest . | . . . . . . Shots Fired . | . . . . . . Gun . | . . . . . . Cannon . | . . . . . . Launcher . | . . . . . . Special . | . . . . . . Kinetic . | . . . . . . Thermal . | . . . . . . Explosive . | . . . . . . Electromagnetic . | . . . . . . Robot Hit Streak . | . . . . . . Robot Miss Streak . | . . . . . . Penetration Max . | . . . . . . Secondary Targets . | . . . . . . Shots Hit Robots 19 | . 17 2 . . . Core Hits 3 | . . . . . 3 Critical Kills . | . . . . . . Critical Parts Destroyed . | . . . . . . Critical Strikes . | . . . . . . Melee Attacks 22 | . 20 2 . . . Impact . | . . . . . . Slashing . | . . . . . . Piercing . | . . . . . . Sneak Attacks 12 | . 12 . . . . Combat Hostiles . | . . . . . . Follow-up Attacks . | . . . . . . Damage Inflicted 26 | . 2 . . . 24 Guns . | . . . . . . Cannons . | . . . . . . Explosions . | . . . . . . Melee . | . . . . . . Ramming 26 | . 2 . . . 24 Kinetic . | . . . . . . Thermal . | . . . . . . Explosive . | . . . . . . Electromagnetic . | . . . . . . Impact . | . . . . . . Slashing . | . . . . . . Piercing . | . . . . . . Highest Corruption 2 | . . . . . 2 Average Corruption 1 | . . . . . 1 Corruption Purged . | . . . . . . Corruption Blocked . | . . . . . . Overload Shots . | . . . . . . Overflow Damage . | . . . . . . Projectiles . | . . . . . . Explosions . | . . . . . . Melee . | . . . . . . Knockbacks . | . . . . . . Impact . | . . . . . . Kinetic . | . . . . . . Secondary . | . . . . . . Self-Inflicted Damage 11 | . 1 . . . 10 Shots . | . . . . . . Rammed 8 | . 2 . . . 6 Targets Rammed 8 | . 2 . . . 6 Kicked . | . . . . . . Crushed . | . . . . . . Highest Temperature 178 | . . 178 . . . Average Temperature 95 | . . 95 . . . Received Heat Transfer 441 | . 93 174 81 . 93 Siege Activations . | . . . . . . Robots Corrupted . | . . . . . . Combat Hostiles . | . . . . . . Parts Fried . | . . . . . . Impact Corruptions . | . . . . . . Robots Melted . | . . . . . . Combat Hostiles . | . . . . . . Parts Melted . | . . . . . . Heat Transferred . | . . . . . . Parts Sabotaged . | . . . . . . Parts Stolen . | . . . . . . Parts Stripped . | . . . . . . Power Chain Reactions . | . . . . . . Missiles Intercepted . | . . . . . . Alert | -11 -10 -9 -8 -7 -7 ------- Run | Scr Mat Mat Mat Fac Sto Peak Influence 414 | . 245 414 359 169 156 Initial 174 | . . 103 174 154 76 Average 157 | . 105 186 248 160 111 Maximum Alert Level 2 | . 1 2 1 . . Low Security (%) 73 | 100 79 72 34 100 100 Level 1 24 | . 20 19 65 . . Level 2 2 | . . 7 . . . Level 3 . | . . . . . . Level 4 . | . . . . . . Level 5 . | . . . . . . High Security . | . . . . . . Max Security . | . . . . . . Squads Dispatched 7 | . 3 2 1 . 1 Investigation 3 | . 1 1 1 . . Extermination . | . . . . . . Reinforcement 4 | . 2 1 . . 1 Assault . | . . . . . . Garrison . | . . . . . . Intercept . | . . . . . . Searches Triggered . | . . . . . . Construction Impeded . | . . . . . . Haulers Reinforced . | . . . . . . Active Scanning Responses . | . . . . . . Cargo Convoy Interrupts . | . . . . . . Stealth | -11 -10 -9 -8 -7 -7 --------- Run | Scr Mat Mat Mat Fac Sto Distress Signals 6 | . 2 2 1 . 1 Communications Jammed . | . . . . . . Distress Signals . | . . . . . . Times Spotted 70 | . 18 20 17 1 14 Peak Tracking Total 19 | . 7 19 10 1 12 Tactical Retreats 14 | . 5 5 3 . 1 Traps | -11 -10 -9 -8 -7 -7 ------- Run | Scr Mat Mat Mat Fac Sto Traps Triggered 3 | . 2 1 . . . Indirectly . | . . . . . . Trap Hack Attempts 1 | . 1 . . . . Triggered . | . . . . . . Disarmed . | . . . . . . Reprogrammed . | . . . . . . Reused . | . . . . . . Traps Extracted . | . . . . . . Installed . | . . . . . . Triggered . | . . . . . . Machines | -11 -10 -9 -8 -7 -7 ---------- Run | Scr Mat Mat Mat Fac Sto Machines Disabled . | . . . . . . Max in Single Turn . | . . . . . . Machines Sabotaged . | . . . . . . Garrisons Compromised . | . . . . . . Overloaded Fab Kills . | . . . . . . Hacking | -11 -10 -9 -8 -7 -7 --------- Run | Scr Mat Mat Mat Fac Sto Machines Accessed 3 | . . 1 2 . . Terminals 3 | . . 1 2 . . Fabricators . | . . . . . . Repair Stations . | . . . . . . Recycling Units . | . . . . . . Scanalyzers . | . . . . . . Garrison Access . | . . . . . . Total Hacks 11 | . . 3 8 . . Successful 4 | . . 1 3 . . Failed 7 | . . 2 5 . . Catastrophic . | . . . . . . Database Lockouts . | . . . . . . Manual 22 | . 10 3 9 . . Terminals 11 | . . 3 8 . . Fabricators . | . . . . . . Repair Stations . | . . . . . . Recycling Units . | . . . . . . Scanalyzers . | . . . . . . Garrison Access . | . . . . . . Terminal Hacks 4 | . . 1 3 . . Robot Analysis 4 | . . 1 3 . . Fabricator Hacks . | . . . . . . Repair Station Hacks . | . . . . . . Recycling Unit Hacks . | . . . . . . Scanalyzer . | . . . . . . Garrison Access Hacks . | . . . . . . Unauthorized Hacks . | . . . . . . Terminals . | . . . . . . Fabricators . | . . . . . . Repair Stations . | . . . . . . Recycling Units . | . . . . . . Scanalyzers . | . . . . . . Garrison Access . | . . . . . . Data Cores Recovered . | . . . . . . Used . | . . . . . . Hacking Detections 5 | . 2 1 2 . . Full Trace Events 1 | . . . 1 . . Feedback Events . | . . . . . . Feedback Blocked . | . . . . . . Robot Schematics Acquired . | . . . . . . Robots Built . | . . . . . . Authchips . | . . . . . . Time . | . . . . . . Total Robot Build Rating . | . . . . . . Part Schematics Acquired . | . . . . . . Parts Built . | . . . . . . Authchips . | . . . . . . Time . | . . . . . . Total Part Build Rating . | . . . . . . Parts Repaired . | . . . . . . Time . | . . . . . . Parts Recycled . | . . . . . . Recycled Matter . | . . . . . . Retrieved Matter . | . . . . . . Retrieved Components . | . . . . . . Parts Scanalyzed . | . . . . . . Part Schematics Acquired . | . . . . . . Parts Damaged . | . . . . . . Bothacking | -11 -10 -9 -8 -7 -7 ------------ Run | Scr Mat Mat Mat Fac Sto Used RIF Installer . | . . . . . . Robots Hacked 8 | . 7 1 . . . Non-combat 6 | . 6 . . . . Combat 2 | . 1 1 . . . Robot Hacks Applied 11 | . 10 1 . . . parse_system 7 | . 6 1 . . . no_distress 2 | . 2 . . . . find_recycling 1 | . 1 . . . . check_alert 1 | . 1 . . . . Relay Couplers Released . | . . . . . . Fabnet Peak Effective % . | . . . . . . Robots Rewired . | . . . . . . Allies Hacked . | . . . . . . Hacks Repelled . | . . . . . . Allies | -11 -10 -9 -8 -7 -7 -------- Run | Scr Mat Mat Mat Fac Sto Total Allies . | . . . . . . Largest Group . | . . . . . . Highest-Rated Group . | . . . . . . Highest-Rated Ally . | . . . . . . Total Orders . | . . . . . . Ally Attacks . | . . . . . . Total Damage . | . . . . . . Kills . | . . . . . . Allies Corrupted . | . . . . . . Allies Melted . | . . . . . . Intel | -11 -10 -9 -8 -7 -7 ------- Run | Scr Mat Mat Mat Fac Sto Robot Analysis Total 4 | . . 1 3 . . Derelict Logs Recovered . | . . . . . . Drone Launches . | . . . . . . Drone Recoveries . | . . . . . . Exploration | -11 -10 -9 -8 -7 -7 ------------- Run | Scr Mat Mat Mat Fac Sto Turns Passed 730 | 10 237 251 121 22 89 Spaces Moved 1257 | 20 380 358 289 44 166 Core 1006 | 20 380 358 38 44 166 Treads . | . . . . . . Legs . | . . . . . . Wheels . | . . . . . . Hover . | . . . . . . Flight 251 | . . . 251 . . Fastest Speed 32 | 50 50 50 32 50 50 Average Speed 47 | 50 50 52 34 50 50 Slowest Speed 150 | 50 50 150 50 50 50 Overloaded Moves . | . . . . . . Propulsion Burnouts . | . . . . . . Robots Hopped 10 | . . . 10 . . Cave-ins Triggered . | . . . . . . Exploration Rate (%) 31 | 4 53 47 37 2 47 Regions Visited 5 Branch Regions 1 Pre-discovered Areas . | . . . . . . Known Exits Taken . | . . . . . . Unknown Exits Taken 5 | 1 1 1 1 1 . Scrap Searched . | . . . . . . Spaces Dug . | . . . . . . Terrain Destroyed . | . . . . . . Melee . | . . . . . . Projectile . | . . . . . . AOE . | . . . . . . Terrain Rammed . | . . . . . . Walls Destroyed . | . . . . . . Machines Disabled . | . . . . . . Actions | -11 -10 -9 -8 -7 -7 --------- Run | Scr Mat Mat Mat Fac Sto Total 1366 | 19 414 420 298 43 172 Wait 69 | . 6 45 18 . . Move 1236 | 19 379 357 272 43 166 Hop 6 | . . . 6 . . Pick Up 4 | . . 4 . . . Fast Attach 12 | . 5 5 2 . . Attach 1 | . . 1 . . . Detach 4 | . 1 3 . . . Swap . | . . . . . . Drop 3 | . . 3 . . . Fire . | . . . . . . Melee 22 | . 20 2 . . . Ram 8 | . 2 . . . 6 Kick . | . . . . . . Crush . | . . . . . . Escape Stasis . | . . . . . . Rewire . | . . . . . . Trap 1 | . 1 . . . . Miscellaneous . | . . . . . . Route ------- -11/Scrapyard -10/Materials (discovered 2 exits: *Mat x2) -9/Materials -8/Materials -7/Factory -7/Storage History --------- Turn | Location | Event 3 | -11/Scrapyard | Discovered new exit (range 16) 11 | -11/Scrapyard | Entered Materials 206 | -10/Materials | Lost 3 parts (3w) 214 | -10/Materials | Core integrity fell below 50% 221 | -10/Materials | Discovered new exit (range 5) 244 | -10/Materials | Discovered new exit (range 6) 248 | -10/Materials | Entered another Materials area 248 | -9/Materials | Evolved 2 slots: Utility x2 307 | -9/Materials | Build established: Mutant 413 | -9/Materials | Core integrity fell below 50% 439 | -9/Materials | Core integrity fell below 20% 470 | -9/Materials | Discovered new exit (range 14) 499 | -9/Materials | Entered another Materials area 499 | -8/Materials | Evolved 2 slots: Utility x2 554 | -8/Materials | Discovered new exit (range 5) 620 | -8/Materials | Entered Factory 620 | -7/Factory | Evolved 2 slots: Propulsion x2 635 | -7/Factory | Discovered new exit (range 16) 642 | -7/Factory | Entered Storage 702 | -7/Storage | Core integrity fell below 50% 720 | -7/Storage | Core integrity fell below 20% 731 | -7/Storage | Destroyed by Y-54 Guardian with Gatling Laser Last Messages --------------- LOCATION=UNKNOWN GOAL=ESCAPE 00635_ EXIT=FOUND LOCATION=UNKNOWN GOAL=ESCAPE 00691_ Reaction Control System destroyed. 00694_ K-01 Serf collects debris. 00701_ Connecting with Terminal... 00701_ Current location identified: Storage 00705_ Connecting with Terminal... 00706_ O-24 Administrator: "IFF HANDSHAKE FAILED. SECURING TERMINAL." 00706_ W-25 Informer sends out distress signal. 00711_ ALERT: Hostiles spotted, dispatching reinforcements to Terminal S011. 00712_ Slammed into S-27 Virus. 00712_ Destabilizing: System corrupted (+1). 00713_ Slammed into S-27 Virus. 00718_ K-01 Serf collects debris. 00718_ Slammed into W-25 Informer. 00730_ Slammed into Y-54 Guardian. Map ----- +----------------------------------------------------+ | ??????????????????????????????????????????????? | | ??????????????????????????????????????????????? | | ??????????????????????????????????????????????? | | ??????????????????????????????????????????????? | | #?????????????????##########??????????????????? | | ? "?????????????????# #??????????????????? | | ? ?????????#"""????# #??????????????????? | | ? "?????????#"T"????# #????###########???? | | ? #????????##" "##### #????# #???? | | ? #????????# ## #????# #???? | | ? ########## ## ###### #???? | | ?# # #""" ## / # #???? | | ?# # #""" ## ### / """"" #???? | | ?# # #""" ## #?# # """"" #???? | | ?# # #""" ########/##?# # """"" #???? | | ## # #""" ###### ### # ????? | | # # + " ##########????? | | ## # # # "T #?????????????? | | ?# # # # #### ######?????????????? | | ?# # # # #??## ##??????????????????? | | ?# ##+##+############s##### #????? ?????????????? | | ?# # #?# ## #????"""????????????? | | ##+# #?# """" ## #???""""" ??????????? | | + #?# """" ## u##? """"" #?????????? | | # ########## """" #YY # ??????????? | | "" # # # """" @Y"" # """""???????????? | | ?" # # """ # # T + """""???????????? | | ?" # # """ # # # """""???????????? | | ?" # # """ # ## ##?? ??????????? | | ?" # / # ## ###########?????????? | | ? # # """ ###### #### # ???????????? | | ? # #= """ #????###??# # """ "???????????? | | ?### # """ ########### # """ "???????????? | | ???# # + # """ ""??????????? | | ???# ##+############ # """ ""??????????? | | ???# #??????????# ### " """ ""??????????? | | ???# #??????????# #?# # #???????? | | ???# #?????###### #?# ### #########???????? | | ???# ####### ## ??##???????????????? | | ???# ## ??????????????????? | | ???# ####+##+######## ?????????????????? | | ???# #??# ?????# ###????????????????? | | ???# #??# """" ???######??????????????????? | | ???+ #??# """" #??????????????????????????? | | ???##+###+#??# """" #??????????????????????????? | | ?????????????# """" #??????????????????????????? | | ?????????????# #??????????????????????????? | | ?????????????# #??????????????????????????? | | ?????????????# ?? #??????????????????????????? | | ?????????????? ???? #??????????????????????????? | +----------------------------------------------------+ Best States ------------- Heat Dissipation 34 Energy Generation 5 Energy Capacity 100 Matter Stores 100 Matter Capacity 300 Sight Range 16 Terrain Scan Density 10 Evasion (%) 71 Item Schematics ----------------- None Robot Schematics ------------------ None Fabricated ------------ Nothing Alien Tech Used ----------------- None Achievements -------------- None Challenges ------------ None Game ------ Seed PlasmaTransportSaw Manual? 0 Play Time 00:21:27 Cumulative 102.2 hours Start 2022.05.11 @ 17:06:39 End 2022.05.11 @ 17:33:59 Sessions 1 Manual Loads 0 Difficulty Rogue Special Mode None Game No. 135 Rogue 135 Adventurer 0 Explorer 0 Win Type - Total 1 Types 1/0/0/0/0/0/0/0/0 Lore% 58 Gallery% 55 Achievement% 48 Wizard Run 0 Options --------- ASCII 0 Keyboard 0 Movement Numpad Keybinds 0 Fullscreen 1 Font 18/X11Bold Map View 76x50 Tactical HUD 1 Map Filters NONE Filters NONE Steam X RUN: 6b3524f4-4e86-4f64-9cb6-f6ff59024cf4